lending/lending_fUSD_20260306
["ID","MTS","AMOUNT","RATE_DAILY","PERIOD"]
[407846653,1772827841530,-1000.0,0.00017521,2]
[407846654,1772827841540,-1000.0,0.00017521,2]
[407846655,1772827841550,-705.88057451,0.00017521,2]
[407846656,1772827841559,-1000.0,0.00017521,2]
[407846657,1772827841569,-735.21838039,0.00017521,2]
[407846658,1772827841578,-1000.0,0.00017521,2]
[407846659,1772827841588,-1000.0,0.00017521,2]
[407846660,1772827841597,-1000.0,0.00017521,2]
[407846661,1772827841607,-849.85488597,0.00017521,2]
[407846662,1772827841616,-1056.1229892,0.00017521,2]
[407846663,1772827841626,-1030.88059829,0.00017521,2]
[407846664,1772827841636,-1000.0,0.00017521,2]
[407846665,1772827841645,-1000.0,0.00017521,2]
[407846666,1772827841655,-380.42,0.0001756,2]
[407846667,1772827841668,-3000.0,0.00017597,2]
[407846668,1772827841677,-372.17701813,0.00017763,2]
[407846669,1772827841687,-15182.95291585,0.00017763,2]
[407846670,1772827841696,-800.0,0.00017808,2]
[407846671,1772827841706,-380.42,0.0001783,2]
[407846672,1772827841715,-18833.89212148,0.00017898,2]
[407846673,1772827841725,-5937.38224134,0.000179,2]
[407846674,1772827841734,-250.0,0.00017944,2]
[407846675,1772827841743,-2148.8308,0.00017974,2]
[407846676,1772827841752,-12798.57558659,0.0001799,2]
[407846677,1772827841762,-43894.92938619,0.00018,2]
[407846678,1772827841771,-9547.53,0.00018,2]
[407846679,1772827841780,-1531.37,0.00018035,7]
[407846680,1772827841790,-218.85713911,0.00018064,2]
[407846681,1772827841799,-1500.0,0.00018068,2]
[407846682,1772827841808,-1500.0,0.00018068,2]
[407846683,1772827841818,-1500.0,0.00018068,2]
[407846684,1772827841827,-1500.0,0.00018068,2]
[407846685,1772827841836,-1500.0,0.00018068,2]
[407846686,1772827841846,-1557.2086331,0.00018068,2]
[407846687,1772827841855,-1500.0,0.00018068,2]
[407846688,1772827841864,-1500.0,0.00018068,2]
[407846689,1772827841873,-1500.0,0.00018068,2]
[407846690,1772827841883,-3292.0,0.00018074,2]
[407846691,1772827841892,-380.42,0.000181,2]
[407846692,1772827841902,-3500.0,0.00018145,2]
[407846693,1772827841912,-380.42,0.0001837,2]
[407846694,1772827841921,-220.0,0.00018455,2]
[407846695,1772827841931,-15182.95291585,0.00018476,2]
[407846696,1772827841941,-20418.27,0.00018536,7]
[407846697,1772827841950,-172.74325605,0.0001854,7]
[407846698,1772827841960,-1020.91,0.00018561,7]
[407846699,1772827841970,-2000.0,0.00018616,2]
[407846700,1772827841979,-2000.0,0.00018616,2]
[407846701,1772827841989,-2000.0,0.00018616,2]
[407846702,1772827841998,-489.71509886,0.00018616,2]
[407846703,1772827842008,-932.0,0.00018617,2]
[407846704,1772827842017,-220.0,0.00018632,2]
[407846705,1772827842027,-380.42,0.0001864,2]
[407846706,1772827842036,-1500.0,0.00018693,2]
[407846707,1772827842049,-2583.57,0.00018722,2]
[407846708,1772827842059,-220.0,0.00018723,2]
[407846709,1772827842069,-220.0,0.00018738,2]
[407846710,1772827842079,-220.0,0.0001876,2]
[407846711,1772827842088,-372.17701813,0.00018832,2]
[407846712,1772827842098,-220.0,0.00018843,2]
[407846713,1772827842108,-1000.0,0.00018857,2]
[407846714,1772827842117,-380.42,0.0001891,2]
[407846715,1772827842127,-371.43183159,0.00019,2]
[407846716,1772827842380,-2623.68709664,0.00019,2]
[407846717,1772827842389,-350.0,0.00019,2]
[407846718,1772827842400,-360.39836175,0.0001901,7]
[407846719,1772827842411,-220.0,0.00019019,2]
[407846720,1772827842421,-15313.7,0.00019092,7]
[407846721,1772827842430,-220.0,0.00019137,2]
[407846722,1772827842440,-546.47179689,0.00019164,2]
[407846723,1772827842449,-2500.0,0.00019164,2]
[407846724,1772827842459,-278.57186039,0.00019164,2]
[407846725,1772827842468,-3000.0,0.00019178,2]
[407846726,1772827842478,-3000.0,0.00019178,7]
[407846727,1772827842487,-380.42,0.0001918,2]
[407846728,1772827842497,-220.0,0.00019182,2]
[407846729,1772827842506,-15182.95291585,0.00019188,2]
[407846730,1772827842516,-482.5,0.00019195,2]
[407846731,1772827842525,-220.0,0.00019215,2]
[407846732,1772827842535,-876.76,0.00019304,2]
[407846733,1772827842544,-220.0,0.00019331,2]
[407846734,1772827842554,-220.0,0.00019349,2]
[407846735,1772827842564,-380.42,0.0001945,2]
[407846736,1772827842573,-220.0,0.00019452,2]
[407846737,1772827842583,-482.5,0.00019469,2]
[407846738,1772827842592,-220.0,0.00019494,2]
[407846739,1772827842602,-18900.0,0.000195,7]
[407846740,1772827842611,-220.0,0.0001952,2]
[407846741,1772827842621,-876.76,0.00019578,2]
[407846742,1772827842630,-172.74325605,0.000196,7]
[407846743,1772827842640,-3700.0,0.000196,7]
[407846744,1772827842649,-220.0,0.00019621,2]
[407846745,1772827842661,-10209.13,0.00019649,7]
[407846746,1772827842671,-3700.0,0.000197,7]
[407846747,1772827842681,-3000.0,0.00019712,2]
[407846748,1772827842690,-380.42,0.0001972,2]
[407846749,1772827842699,-482.5,0.00019743,2]
[407846750,1772827842710,-3700.0,0.000198,7]
[407846751,1772827842719,-20100.0,0.000198,2]
[407846752,1772827842729,-220.0,0.00019829,2]
[407846753,1772827842738,-876.76,0.00019852,2]
[407846754,1772827842747,-172.74325605,0.00019873,2]
[407846755,1772827842756,-160.0,0.00019873,2]
[407846756,1772827842765,-1417.0,0.00019881,2]
[407846757,1772827842775,-5800.0,0.00019892,2]
[407846758,1772827842784,-220.0,0.00019893,2]
[407846759,1772827842794,-372.17701813,0.000199,2]
[407846760,1772827842803,-15182.95291585,0.000199,2]
[407846761,1772827842812,-4019.76456175,0.000199,2]
[407846762,1772827842822,-3700.0,0.000199,7]
[407846763,1772827842833,-5800.0,0.000199,2]
[407846764,1772827842842,-220.11894526,0.000199,2]
[407846765,1772827842851,-1584.09355339,0.000199,2]
[407846766,1772827842860,-2407.35920062,0.000199,2]
[407846767,1772827842869,-220.0,0.0001992,2]
[407846768,1772827842878,-220.0,0.00019922,2]
[407846769,1772827842887,-220.0,0.00019945,2]
[407846770,1772827842896,-48772.07276891,0.0001995,15]
[407846771,1772827842905,-230.20999899,0.0001995,7]
[407846772,1772827842915,-639.90470534,0.0001997,2]
[407846773,1772827842924,-446.12402339,0.00019973,2]
[407846774,1772827842933,-184.94185274,0.00019973,2]
[407846775,1772827842942,-500.0,0.00019973,2]
[407846776,1772827842951,-500.0,0.00019973,2]
[407846777,1772827842961,-500.0,0.00019973,2]
[407846778,1772827842971,-500.0,0.00019973,2]
[407846779,1772827842980,-150.0,0.00019973,2]
[407846780,1772827842989,-119258.6679168,0.0001998,2]
[407846781,1772827842999,-380.42,0.0001999,2]
[407846782,1772827843008,-218.85713911,0.0001999,2]
[407846783,1772827843017,-151.0,0.00019997,2]
[407846784,1772827843026,-300.0,0.00019999,2]
[407846786,1772827843035,-666.0,0.00019999,2]
[407846787,1772827843045,-8167503.71709097,0.0002,2]
[407846793,1772827843327,-754.07848955,0.0002,2]
[407846794,1772827843612,-8214126.68917386,0.0002,2]
[407846795,1772827843622,-836.3,0.0002,7]
[407846796,1772827843632,-327.3816354,0.0002,120]
[407846797,1772827843642,-1474.82784586,0.0002,5]
[407846798,1772827843651,-327830.60359323,0.0002,2]
[407846799,1772827843662,-315482.4722546,0.0002,2]
[407846800,1772827843690,-53969.44399,0.0002,2]
[407846801,1772827844436,-350073.80704045,0.0002,2]
[407846802,1772827844456,-1998.52703654,0.0002,2]
[407846803,1772827844669,-801.81199404,0.0002,2]
[407846804,1772827844684,-2119.67369226,0.0002,2]
[407846805,1772827844697,-722.8955016,0.0002,2]
[407846806,1772827844708,-1699.21379568,0.0002,2]
[407846814,1772827846084,-5690.0006,0.0002,2]
[407846815,1772827846298,-191063.60717326,0.0002,2]
[407846830,1772827860736,-513.0,0.0001342,2]
[407846831,1772827889629,151.0,0.00013572,2]
[407846837,1772828731087,-150.0,0.00013697,2]
[407846838,1772828731107,-300.0,0.00013697,2]
[407846839,1772828731127,-1200.0,0.00013697,2]
[407846840,1772828731152,-300.0,0.00013697,2]
[407846841,1772828731173,-500.0,0.00013698,2]
[407846842,1772828731194,-500.0,0.00013698,2]
[407846843,1772828731216,-500.0,0.00013698,2]
[407846844,1772828731238,-500.0,0.00013698,2]
[407846845,1772828731259,-500.0,0.00013698,2]
[407846846,1772828731281,-500.0,0.00013698,2]
[407846847,1772828731302,-500.0,0.00013698,2]
[407846848,1772828731323,-500.0,0.00013698,2]
[407846849,1772828731343,-500.0,0.00013698,2]
[407846850,1772828731365,-500.0,0.00013698,2]
[407846851,1772828731389,-500.0,0.00013698,2]
[407846852,1772828731411,-500.0,0.00013698,2]
[407846853,1772828731432,-500.0,0.00013698,2]
[407846854,1772828731452,-500.0,0.00013698,2]
[407846855,1772828731473,-500.0,0.00013698,2]
[407846856,1772828731492,-500.0,0.00013698,2]
[407846857,1772828731512,-500.0,0.00013698,2]
[407846858,1772828731536,-500.0,0.00013698,2]
[407846859,1772828731557,-600.0,0.00014017,2]
[407846860,1772828731578,-166.07,0.00014174,2]
[407846861,1772828731601,-255.0,0.0001482,2]
[407846862,1772828731628,-1388.81305429,0.00014938,2]
[407846863,1772828731648,-500.0,0.00015001,2]
[407846864,1772828731668,-151.0,0.00015001,2]
[407846865,1772828731688,-500.0,0.00015001,2]
[407846866,1772828731707,-151.0,0.00015001,2]
[407846867,1772828731728,-500.0,0.00015001,2]
[407846868,1772828731748,-151.0,0.00015001,2]
[407846869,1772828731769,-500.0,0.00015001,2]
[407846870,1772828731789,-151.0,0.00015001,2]
[407846871,1772828731810,-500.0,0.00015001,2]
[407846872,1772828731832,-151.0,0.00015001,2]
[407846873,1772828731852,-500.0,0.00015001,2]
[407846874,1772828731873,-151.0,0.00015001,2]
[407846875,1772828731893,-151.0,0.00015001,2]
[407846876,1772828731913,-151.0,0.00015001,2]
[407846877,1772828731934,-151.0,0.00015001,2]
[407846878,1772828731954,-500.0,0.00015001,2]
[407846879,1772828731977,-151.0,0.00015001,2]
[407846880,1772828731998,-151.0,0.00015001,2]
[407846881,1772828732218,-500.0,0.00015001,2]
[407846882,1772828732239,-500.0,0.00015001,2]
[407846883,1772828732261,-500.0,0.00015001,2]
[407846884,1772828732282,-500.0,0.00015001,2]
[407846885,1772828732303,-500.0,0.00015001,2]
[407846886,1772828732323,-500.0,0.00015001,2]
[407846887,1772828732342,-200.0,0.00015001,2]
[407846888,1772828732363,-500.0,0.00015001,2]
[407846889,1772828732384,-500.0,0.00015001,2]
[407846890,1772828732404,-500.0,0.00015001,2]
[407846891,1772828732424,-500.0,0.00015001,2]
[407846892,1772828732443,-500.0,0.00015001,2]
[407846893,1772828732464,-500.0,0.00015001,2]
[407846894,1772828732484,-500.0,0.00015001,2]
[407846895,1772828732505,-500.0,0.00015001,2]
[407846896,1772828732524,-500.0,0.00015001,2]
[407846897,1772828732544,-151.0,0.00015001,2]
[407846898,1772828732563,-500.0,0.00015001,2]
[407846899,1772828732581,-171.02061742,0.00015001,2]
[407846900,1772828732605,-151.0,0.00015001,2]
[407846901,1772828732625,-151.0,0.00015001,2]
[407846902,1772828732645,-151.0,0.00015001,2]
[407846903,1772828732665,-151.0,0.00015001,2]
[407846904,1772828732686,-151.0,0.00015001,2]
[407846905,1772828732706,-151.0,0.00015001,2]
[407846906,1772828732726,-151.0,0.00015001,2]
[407846907,1772828732745,-151.0,0.00015001,2]
[407846908,1772828732764,-151.0,0.00015001,2]
[407846909,1772828732783,-151.0,0.00015001,2]
[407846910,1772828732803,-151.0,0.00015001,2]
[407846911,1772828732823,-151.0,0.00015001,2]
[407846912,1772828732842,-151.0,0.00015001,2]
[407846913,1772828732861,-151.0,0.00015001,2]
[407846914,1772828732882,-151.0,0.00015001,2]
[407846915,1772828732901,-151.0,0.00015001,2]
[407846916,1772828732920,-151.0,0.00015001,2]
[407846917,1772828732941,-151.0,0.00015001,2]
[407846918,1772828732960,-151.0,0.00015001,2]
[407846919,1772828732980,-151.0,0.00015001,2]
[407846920,1772828733000,-500.0,0.00015001,2]
[407846921,1772828733020,-978.79,0.0001501,2]
[407846922,1772828733040,-150.99,0.0001501,2]
[407846923,1772828733062,-9999.99,0.0001501,2]
[407846924,1772828733083,-516.46,0.0001501,2]
[407846925,1772828733107,-174.79216972,0.0001501,2]
[407846926,1772828801215,745.01,8.156e-05,2]
[407846927,1772828801435,745.01,8.586e-05,2]
[407846928,1772828802039,745.01,9.015e-05,2]
[407846929,1772828802266,745.01,9.444e-05,2]
[407846930,1772828802505,745.01,9.873e-05,2]
[407846931,1772828802712,745.01,0.00010303,2]
[407846932,1772828803209,745.01,0.00010732,2]
[407846933,1772828803240,745.01,0.00011161,2]
[407846934,1772828803350,745.01,0.00011591,2]
[407846935,1772828803595,745.01,0.0001202,2]
[407846936,1772828803787,745.01,0.00012449,2]
[407846937,1772828803982,745.01,0.00012878,2]
[407846938,1772828804192,745.01,0.00013308,2]
[407846939,1772828809087,-470.36299754,0.00013737,2]
[407846944,1772829031325,-150.0,0.00013737,2]
[407846945,1772829031335,-274.64700246,0.00013737,2]
[407846946,1772829031344,-745.01,0.00014166,2]
[407846947,1772829031354,-745.01,0.00014596,2]
[407846948,1772829031363,-200.72181509,0.0001491,2]
[407846949,1772829031373,-150.0,0.0001491,14]
[407846950,1772829031383,-810.70526513,0.00014924,2]
[407846951,1772829031398,-389.29473487,0.00014924,2]
[407846952,1772829031407,-707.22148289,0.00014925,2]
[407846953,1772829031418,-401.79,0.00014925,2]
[407846954,1772829031429,-811.50471421,0.00014925,2]
[407846955,1772829031440,-4494.85001972,0.00014925,2]
[407846957,1772829031459,-7339.58118058,0.00014925,2]
[407846958,1772829031468,-150.0,0.00015,2]
[407846959,1772829031478,-151.0,0.00015001,2]
[407846960,1772829031488,-500.0,0.00015001,2]
[407846961,1772829031497,-151.0,0.00015001,2]
[407846963,1772829031507,-500.0,0.00015001,2]
[407846965,1772829031516,-151.0,0.00015001,2]
[407846967,1772829031525,-500.0,0.00015001,2]
[407846969,1772829031534,-151.0,0.00015001,2]
[407846971,1772829031543,-500.0,0.00015001,2]
[407846973,1772829031553,-151.0,0.00015001,2]
[407846975,1772829031562,-500.0,0.00015001,2]
[407846977,1772829031572,-151.0,0.00015001,2]
[407846979,1772829031581,-500.0,0.00015001,2]
[407846980,1772829031591,-151.0,0.00015001,2]
[407846981,1772829031601,-500.0,0.00015001,2]
[407846982,1772829031610,-500.0,0.00015001,2]
[407846983,1772829031620,-151.0,0.00015001,2]
[407846984,1772829031630,-500.0,0.00015001,2]
[407846985,1772829031639,-500.0,0.00015001,2]
[407846986,1772829031649,-151.0,0.00015001,2]
[407846987,1772829031658,-500.0,0.00015001,2]
[407846988,1772829031667,-151.0,0.00015001,2]
[407846989,1772829031676,-151.0,0.00015001,2]
[407846990,1772829031688,-500.0,0.00015001,2]
[407846991,1772829031697,-500.0,0.00015001,2]
[407846992,1772829031706,-500.0,0.00015001,2]
[407846993,1772829031715,-569.75057649,0.00015001,2]
[407846994,1772829031724,-200.0,0.00015001,2]
[407846995,1772829031734,-151.0,0.00015001,2]
[407846996,1772829031743,-500.0,0.00015001,2]
[407846997,1772829031753,-151.0,0.00015001,2]
[407846998,1772829031763,-151.0,0.00015001,2]
[407846999,1772829031773,-151.0,0.00015001,2]
[407847000,1772829031784,-151.0,0.00015001,2]
[407847001,1772829031794,-151.0,0.00015001,2]
[407847002,1772829031803,-151.0,0.00015001,2]
[407847003,1772829031812,-151.0,0.00015001,2]
[407847004,1772829031821,-151.0,0.00015001,2]
[407847005,1772829031831,-151.0,0.00015001,2]
[407847006,1772829031840,-151.0,0.00015001,2]
[407847007,1772829031849,-151.0,0.00015001,2]
[407847008,1772829031858,-151.0,0.00015001,2]
[407847009,1772829031867,-151.0,0.00015001,2]
[407847010,1772829031877,-151.0,0.00015001,2]
[407847011,1772829031886,-151.0,0.00015001,2]
[407847012,1772829031895,-151.0,0.00015001,2]
[407847013,1772829031905,-151.0,0.00015001,2]
[407847014,1772829031914,-151.0,0.00015001,2]
[407847015,1772829031923,-265.77000524,0.00015001,2]
[407847016,1772829031932,-59193.66965715,0.00015005,2]
[407847020,1772829037414,-3397.45,0.00015005,2]
[407847021,1772829037428,-2270.37735584,0.00015005,2]
[407847022,1772829037443,-918.31820964,0.00015005,2]
[407847023,1772829037454,-1268.56034276,0.00015005,2]
[407847024,1772829037465,-309.44015574,0.00015005,2]
[407847025,1772829037475,-548.69012509,0.00015005,2]
[407847026,1772829037490,-331.43,0.00015005,2]
[407847027,1772829037501,-31222.37469688,0.00015005,2]
[407847028,1772829037510,-2208.4280907,0.00015005,2]
[407847029,1772829037520,-125.19783028,0.0001501,2]
[407847030,1772829037529,-9999.99,0.0001501,2]
[407847031,1772829037538,-150.99,0.0001501,2]
[407847032,1772829037547,-5305.71,0.0001501,2]
[407847033,1772829037556,-9999.99,0.0001501,2]
[407847034,1772829037565,-999.99,0.0001501,2]
[407847035,1772829037574,-9999.99,0.0001501,2]
[407847036,1772829037583,-745.01,0.00015025,2]
[407847037,1772829037592,-589.03508066,0.00015073,2]
[407847038,1772829037601,-500.0,0.00015073,2]
[407847039,1772829037610,-500.0,0.00015073,2]
[407847040,1772829037620,-502.26276919,0.00015073,2]
[407847041,1772829037629,-500.0,0.00015073,2]
[407847042,1772829037638,-267.37441405,0.00015111,2]
[407847043,1772829037647,-600.0,0.00015111,2]
[407847044,1772829037657,-6176.85,0.00015447,2]
[407847045,1772829037666,-745.01,0.00015454,2]
[407847046,1772829037677,-13754.94739738,0.00015478,2]
[407847047,1772829037687,-200.0,0.00015549,2]
[407847048,1772829037699,-1500.0,0.00015555,2]
[407847049,1772829037708,-195.89,0.00015563,2]
[407847050,1772829037718,-1000.0,0.00015621,2]
[407847051,1772829037727,-500.0,0.00015818,2]
[407847052,1772829037738,-859.6,0.00015871,2]
[407847053,1772829037747,-745.01,0.00015883,2]
[407847054,1772829037756,-500.0,0.00015994,3]
[407847055,1772829037766,-150.0,0.00016003,2]
[407847056,1772829037775,-500.0,0.00016024,2]
[407847057,1772829037784,-13754.94739738,0.00016031,2]
[407847058,1772829037793,-2000.0,0.00016049,2]
[407847059,1772829037802,-200.0,0.00016097,2]
[407847060,1772829037811,-255.0,0.00016125,2]
[407847061,1772829037820,-1500.0,0.00016168,2]
[407847062,1772829037829,-347.13,0.0001621,2]
[407847063,1772829037839,-745.01,0.00016313,2]
[407847064,1772829037848,-981.48113076,0.0001632,2]
[407847065,1772829037857,-1680.0,0.00016416,2]
[407847066,1772829037866,-195.89,0.00016427,2]
[407847067,1772829037875,-347.13,0.0001648,2]
[407847068,1772829037885,-1290.69,0.000165,2]
[407847069,1772829037894,-777.38,0.000165,2]
[407847070,1772829037904,-500.0,0.0001651,2]
[407847071,1772829037913,-500.0,0.0001651,2]
[407847072,1772829037923,-500.0,0.0001651,2]
[407847073,1772829037931,-500.0,0.0001651,2]
[407847074,1772829037941,-500.0,0.0001651,2]
[407847075,1772829037950,-500.0,0.0001651,2]
[407847077,1772829037959,-500.0,0.0001651,2]
[407847079,1772829037968,-500.0,0.0001651,2]
[407847081,1772829037979,-500.0,0.0001651,2]
[407847083,1772829037991,-500.0,0.0001651,2]
[407847085,1772829038000,-500.0,0.0001651,2]
[407847086,1772829038009,-500.0,0.0001651,2]
[407847088,1772829038018,-500.0,0.0001651,2]
[407847089,1772829038027,-500.0,0.0001651,2]
[407847090,1772829038036,-500.0,0.0001651,2]
[407847091,1772829038045,-500.0,0.0001651,2]
[407847092,1772829038053,-500.0,0.0001651,2]
[407847093,1772829038063,-188.63245756,0.0001651,2]
[407847094,1772829038072,-500.0,0.0001651,2]
[407847095,1772829038081,-500.0,0.0001651,2]
[407847096,1772829038094,-500.0,0.0001651,2]
[407847097,1772829038107,-500.0,0.0001651,2]
[407847098,1772829038116,-500.0,0.0001651,2]
[407847099,1772829038125,-500.0,0.0001651,2]
[407847100,1772829038135,-200.0,0.00016511,2]
[407847101,1772829038144,-222.09078465,0.00016511,2]
[407847102,1772829038154,-350.0662126,0.00016511,2]
[407847103,1772829038163,-2500.0,0.00016511,2]
[407847104,1772829038172,-2500.0,0.00016511,2]
[407847105,1772829038182,-2500.0,0.00016511,2]
[407847106,1772829038192,-2500.0,0.00016511,2]
[407847107,1772829038201,-2500.0,0.00016511,2]
[407847108,1772829038211,-13754.94739738,0.00016583,2]
[407847109,1772829038220,-200.0,0.00016645,2]
[407847110,1772829038229,-859.6,0.00016664,2]
[407847111,1772829038239,-166.34,0.00016712,2]
[407847112,1772829038248,-2000.0,0.00016716,2]
[407847113,1772829038257,-347.13,0.0001675,2]
[407847114,1772829038266,-2500.0,0.00016973,2]
[407847115,1772829038275,-347.13,0.0001702,2]
[407847116,1772829038285,-2208.4280907,0.0001707,2]
[407847117,1772829038294,-500.0,0.00017073,2]
[407847118,1772829038303,-500.0,0.00017073,2]
[407847119,1772829038313,-500.0,0.00017073,2]
[407847120,1772829038323,-500.0,0.00017073,2]
[407847121,1772829038332,-500.0,0.00017073,2]
[407847122,1772829038342,-500.0,0.00017073,2]
[407847123,1772829038351,-99460.3105431,0.00017094,2]
[407847124,1772829038361,-13754.94739738,0.00017136,2]
[407847125,1772829038370,-267.0,0.00017153,2]
[407847126,1772829038381,-200.0,0.00017193,2]
[407847127,1772829038391,-2500.0,0.00017264,2]
[407847128,1772829038401,-347.13,0.0001729,2]
[407847129,1772829038410,-195.89,0.00017292,2]
[407847130,1772829038420,-330.0,0.00017325,2]
[407847131,1772829038430,-433.0,0.0001734,2]
[407847132,1772829038439,-500.0,0.00017414,2]
[407847133,1772829038450,-500.0,0.00017414,2]
[407847134,1772829038459,-1600.0,0.00017455,2]
[407847135,1772829038468,-859.6,0.00017458,2]
[407847136,1772829038478,-315.86981007,0.00017478,2]
[407847137,1772829038487,-347.13,0.0001756,2]
[407847138,1772829038496,-1900.0,0.000176,6]
[407847139,1772829038506,-1000.0,0.00017621,2]
[407847140,1772829038515,-1000.0,0.00017621,2]
[407847141,1772829038526,-1000.0,0.00017621,2]
[407847142,1772829038536,-949.5306254,0.00017621,2]
[407847143,1772829038546,-1000.0,0.00017621,2]
[407847144,1772829038556,-530.88059829,0.00017621,2]
[407847145,1772829038565,-326.15,0.00017651,2]
[407847146,1772829038574,-13754.94739738,0.00017689,2]
[407847147,1772829038583,-3800.0,0.000177,6]
[407847148,1772829038591,-151.0,0.0001774,2]
[407847149,1772829038601,-500.0,0.0001774,2]
[407847150,1772829038610,-200.0,0.00017741,2]
[407847151,1772829038619,-1706.4322,0.00017773,2]
[407847152,1772829038629,-5700.0,0.000178,6]
[407847153,1772829038639,-800.0,0.00017808,2]
[407847154,1772829038648,-3000.0,0.00017812,2]
[407847155,1772829038657,-347.13,0.0001783,2]
[407847156,1772829038666,-159.50443635,0.00017868,2]
[407847157,1772829038675,-604.22202448,0.00017868,3]
[407847158,1772829038685,-1584.09355339,0.00017868,2]
[407847159,1772829038696,-802.45306688,0.00017868,2]
[407847160,1772829038705,-2606.76447876,0.00017868,2]
[407847161,1772829038714,-659.53632852,0.00017868,2]
[407847162,1772829038723,-1484.34556035,0.000179,2]
[407847163,1772829038732,-1484.34556033,0.000179,2]
[407847164,1772829038742,-1484.34556033,0.000179,2]
[407847165,1772829038751,-1484.34556033,0.000179,2]
[407847166,1772829038760,-7600.0,0.000179,6]
[407847167,1772829038771,-397.65453041,0.00017958,2]
[407847168,1772829038780,-1000.0,0.00017961,2]
[407847169,1772829038789,-151.0,0.00017965,2]
[407847170,1772829038798,-541.81,0.00017967,2]
[407847171,1772829038808,-231.64590532,0.00017967,2]
[407847172,1772829038817,-167.25906542,0.00017967,2]
[407847173,1772829038826,-258.16337427,0.00017967,2]
[407847174,1772829038835,-500.0,0.00017967,2]
[407847175,1772829038844,-577.92924275,0.00017967,2]
[407847176,1772829038852,-2500000.0,0.00017968,2]
[407847177,1772829038862,-3039.52,0.00017969,2]
[407847178,1772829038871,-3039.52,0.00017969,2]
[407847179,1772829038879,-3039.52,0.00017969,2]
[407847180,1772829038889,-5516.15,0.00017969,2]
[407847181,1772829038898,-500.0,0.00017973,2]
[407847182,1772829038907,-500.0,0.00017973,2]
[407847183,1772829038916,-500.0,0.00017973,2]
[407847184,1772829038925,-1534.0,0.00018058,2]
[407847185,1772829038934,-347.13,0.000181,2]
[407847186,1772829038943,-3240.0,0.00018108,2]
[407847187,1772829038952,-228.32,0.00018108,2]
[407847188,1772829038961,-250.0,0.00018151,2]
[407847189,1772829038979,-195.89,0.00018156,2]
[407847190,1772829038990,-1000.0,0.00018168,2]
[407847191,1772829039000,-1500.0,0.00018168,2]
[407847192,1772829039010,-1000.0,0.00018168,2]
[407847193,1772829039019,-1000.0,0.00018168,2]
[407847194,1772829039029,-541.81,0.00018241,2]
[407847195,1772829039038,-13754.94739738,0.00018242,2]
[407847196,1772829039048,-859.6,0.00018251,2]
[407847197,1772829039057,-2606.76447874,0.00018274,2]
[407847198,1772829039305,-240.02207299,0.00018289,2]
[407847199,1772829039315,-500.0,0.0001836,2]
[407847200,1772829039324,-347.13,0.0001837,2]
[407847201,1772829039334,-311.2601902,0.00018509,2]
[407847202,1772829039343,-541.81,0.00018515,2]
[407847203,1772829039352,-1000.0,0.00018521,2]
[407847204,1772829039362,-1000.0,0.00018521,2]
[407847205,1772829039371,-1000.0,0.00018521,2]
[407847206,1772829039380,-425.0,0.0001863,2]
[407847207,1772829039390,-347.13,0.0001864,2]